fUSD/lending_fUSD_20240727
["ID","MTS","AMOUNT","RATE_DAILY","PERIOD"]
[333382648,1722085833860,-331.6237,0.00010858,2]
[333382649,1722085833870,-30653.9396,0.00010858,2]
[333382650,1722085833880,-9643.61360645,0.0001089,2]
[333382651,1722085833890,-2450.376,0.000109,2]
[333382652,1722085833900,-3092.95064418,0.000109,2]
[333382653,1722085833910,-162.71791445,0.000109,2]
[333382654,1722085833919,-220.99,0.00010904,2]
[333382655,1722085833929,-500.0,0.00010912,2]
[333382656,1722085833939,-1359.45192625,0.00010953,2]
[333382657,1722085833949,-437.19993211,0.00010958,2]
[333382658,1722085833959,-500.0,0.00010958,2]
[333382659,1722085833969,-500.0,0.00010958,2]
[333382660,1722085833979,-500.0,0.00010958,2]
[333382661,1722085833988,-500.0,0.00010958,2]
[333382662,1722085833997,-500.0,0.00010958,2]
[333382663,1722085834007,-500.0,0.00010958,2]
[333382664,1722085834016,-500.0,0.00010958,2]
[333382665,1722085834026,-500.0,0.00010958,2]
[333382666,1722085834035,-500.0,0.00010958,2]
[333382667,1722085834045,-500.0,0.00010958,2]
[333382668,1722085834054,-500.0,0.00010958,2]
[333382669,1722085834064,-500.0,0.00010958,2]
[333382670,1722085834074,-500.0,0.00010958,2]
[333382671,1722085834083,-500.0,0.00010958,2]
[333382672,1722085834092,-500.0,0.00010958,2]
[333382673,1722085834105,-500.0,0.00010958,2]
[333382674,1722085834115,-500.0,0.00010958,2]
[333382675,1722085834124,-500.0,0.00010958,2]
[333382676,1722085834134,-500.0,0.00010958,2]
[333382677,1722085834143,-500.0,0.00010958,2]
[333382678,1722085834152,-500.0,0.00010958,2]
[333382679,1722085834162,-500.0,0.00010958,2]
[333382680,1722085834171,-500.0,0.00010958,2]
[333382681,1722085834181,-500.0,0.00010958,2]
[333382682,1722085834190,-379.24,0.00010958,2]
[333382683,1722085834199,-500.0,0.00010958,2]
[333382684,1722085834209,-500.0,0.00010958,2]
[333382685,1722085834218,-500.0,0.00010958,2]
[333382686,1722085834228,-500.0,0.00010958,2]
[333382687,1722085834237,-500.0,0.00010958,2]
[333382688,1722085834246,-500.0,0.00010958,2]
[333382689,1722085834255,-500.0,0.00010958,2]
[333382690,1722085834264,-500.0,0.00010958,2]
[333382691,1722085834273,-510.13863456,0.00010958,2]
[333382692,1722085834283,-500.0,0.00010958,2]
[333382693,1722085834292,-500.0,0.00010958,2]
[333382694,1722085834301,-500.0,0.00010958,2]
[333382695,1722085834310,-500.0,0.00010958,2]
[333382696,1722085834320,-500.0,0.00010958,2]
[333382697,1722085834330,-500.0,0.00010958,2]
[333382698,1722085834339,-500.0,0.00010958,2]
[333382699,1722085834350,-500.0,0.00010958,2]
[333382700,1722085834364,-512.38640263,0.00010958,2]
[333382701,1722085834373,-500.0,0.00010958,2]
[333382702,1722085834382,-504.97856787,0.00010958,2]
[333382703,1722085834392,-500.0,0.00010958,2]
[333382704,1722085834401,-500.0,0.00010958,2]
[333382705,1722085834411,-500.0,0.00010958,2]
[333382706,1722085834421,-504.40771491,0.00010958,2]
[333382707,1722085834430,-500.0,0.00010958,2]
[333382708,1722085834439,-500.0,0.00010958,2]
[333382709,1722085834449,-500.0,0.00010958,2]
[333382710,1722085834459,-507.0713571,0.00010958,2]
[333382711,1722085834469,-500.0,0.00010958,2]
[333382712,1722085834479,-500.0,0.00010958,2]
[333382713,1722085834489,-500.0,0.00010958,2]
[333382714,1722085834502,-502.03540378,0.00010958,2]
[333382715,1722085834512,-500.0,0.00010958,2]
[333382716,1722085834522,-510.37629984,0.00010958,2]
[333382717,1722085834532,-500.0,0.00010958,2]
[333382718,1722085834542,-457.0,0.00010958,2]
[333382719,1722085834552,-500.0,0.00010958,2]
[333382720,1722085834562,-500.0,0.00010958,2]
[333382721,1722085834572,-500.0,0.00010958,2]
[333382722,1722085834582,-500.0,0.00010958,2]
[333382723,1722085834592,-500.0,0.00010958,2]
[333382724,1722085834605,-500.0,0.00010958,2]
[333382725,1722085834615,-500.0,0.00010958,2]
[333382726,1722085834625,-500.0,0.00010958,2]
[333382727,1722085834634,-500.0,0.00010958,2]
[333382728,1722085834648,-500.0,0.00010958,2]
[333382729,1722085834657,-500.0,0.00010958,2]
[333382730,1722085834667,-500.0,0.00010958,2]
[333382731,1722085834677,-500.0,0.00010958,2]
[333382732,1722085834688,-500.0,0.00010958,2]
[333382733,1722085834698,-500.0,0.00010958,2]
[333382734,1722085834708,-500.00000001,0.00010958,2]
[333382735,1722085834719,-500.0,0.00010958,2]
[333382736,1722085834729,-500.0,0.00010958,2]
[333382737,1722085834740,-500.0,0.00010958,2]
[333382738,1722085834750,-500.0,0.00010958,2]
[333382739,1722085834761,-500.0,0.00010958,2]
[333382740,1722085834772,-500.0,0.00010958,2]
[333382741,1722085834781,-500.0,0.00010958,2]
[333382742,1722085834791,-154.0234322,0.00010958,2]
[333382743,1722085834800,-500.0,0.00010958,2]
[333382744,1722085834810,-500.0,0.00010958,2]
[333382745,1722085834819,-500.0,0.00010958,2]
[333382746,1722085834829,-500.0,0.00010958,2]
[333382747,1722085834838,-500.0,0.00010958,2]
[333382748,1722085834847,-500.0,0.00010958,2]
[333382749,1722085834861,-500.0,0.00010958,2]
[333382750,1722085834871,-500.0,0.00010958,2]
[333382751,1722085834881,-773.08,0.00010958,2]
[333382752,1722085834890,-773.08,0.00010958,2]
[333382753,1722085834900,-773.08,0.00010958,2]
[333382754,1722085834910,-773.08,0.00010958,2]
[333382755,1722085834919,-500.0,0.00010958,2]
[333382756,1722085834929,-500.0,0.00010958,2]
[333382757,1722085834939,-500.0,0.00010958,2]
[333382758,1722085834948,-552.86,0.00010958,2]
[333382759,1722085834957,-500.0,0.00010958,2]
[333382760,1722085834967,-187.03,0.00010958,2]
[333382761,1722085834976,-500.0,0.00010958,2]
[333382762,1722085834985,-155.99691816,0.00010958,2]
[333382763,1722085834995,-636.03,0.00010958,2]
[333382764,1722085835005,-500.0,0.00010958,2]
[333382765,1722085835014,-500.0,0.00010958,2]
[333382766,1722085835024,-500.0,0.00010958,2]
[333382767,1722085835033,-619.88652372,0.00010958,2]
[333382768,1722085835043,-500.0,0.00010958,2]
[333382769,1722085835052,-298.84550232,0.00010958,2]
[333382770,1722085835061,-500.0,0.00010958,2]
[333382771,1722085835071,-500.32310531,0.00010958,2]
[333382772,1722085835080,-636.49603942,0.00010958,2]
[333382773,1722085835090,-500.0,0.00010958,2]
[333382774,1722085835099,-335.97661551,0.00010958,2]
[333382775,1722085835112,-500.0,0.00010958,2]
[333382776,1722085835121,-500.0,0.00010958,2]
[333382777,1722085835131,-500.0,0.00010958,2]
[333382778,1722085835140,-500.0,0.00010958,2]
[333382779,1722085835149,-500.0,0.00010958,2]
[333382780,1722085835158,-324.96737549,0.00010958,2]
[333382781,1722085835167,-500.0,0.00010958,2]
[333382782,1722085835177,-500.0,0.00010958,2]
[333382783,1722085835188,-500.0,0.00010958,2]
[333382784,1722085835197,-500.0,0.00010958,2]
[333382785,1722085835207,-500.0,0.00010958,2]
[333382786,1722085835216,-500.0,0.00010958,2]
[333382787,1722085835226,-500.0,0.00010958,2]
[333382788,1722085835235,-500.0,0.00010958,2]
[333382789,1722085835244,-500.0,0.00010958,2]
[333382790,1722085835253,-500.0,0.00010958,2]
[333382791,1722085835263,-500.0,0.00010958,2]
[333382792,1722085835273,-499.33519278,0.00010958,2]
[333382793,1722085835282,-500.0,0.00010958,2]
[333382794,1722085835291,-500.0,0.00010958,2]
[333382795,1722085835300,-500.0,0.00010958,2]
[333382796,1722085835310,-500.0,0.00010958,2]
[333382797,1722085835320,-500.0,0.00010958,2]
[333382798,1722085835329,-500.0,0.00010958,2]
[333382799,1722085835339,-500.0,0.00010958,2]
[333382800,1722085835348,-500.0,0.00010958,2]
[333382801,1722085835363,-500.0,0.00010958,2]
[333382802,1722085835373,-500.0,0.00010958,2]
[333382803,1722085835382,-266.31483415,0.00010958,2]
[333382804,1722085835391,-500.0,0.00010958,2]
[333382805,1722085835401,-500.0,0.00010958,2]
[333382806,1722085835410,-200.0,0.00010959,2]
[333382807,1722085835420,-250.0,0.00010959,2]
[333382808,1722085835429,-2044.95,0.00010959,2]
[333382809,1722085835438,-150.0,0.00010959,2]
[333382810,1722085835448,-587.0,0.00010993,2]
[333382811,1722085835457,-154.9945902,0.00010994,2]
[333382812,1722085835466,-680.2501765,0.00010994,2]
[333382813,1722085835475,-500.0,0.00010998,2]
[333382814,1722085835485,-500.0,0.00010998,2]
[333382815,1722085835494,-500.0,0.00010998,2]
[333382816,1722085835504,-500.0,0.00010998,2]
[333382817,1722085835513,-385.32007589,0.00010998,2]
[333382818,1722085835522,-500.0,0.00010998,2]
[333382819,1722085835532,-500.0,0.00010998,2]
[333382820,1722085835541,-773.08,0.00010998,2]
[333382821,1722085835552,-773.08,0.00010998,2]
[333382822,1722085835561,-773.08,0.00010998,2]
[333382823,1722085835571,-773.08,0.00010998,2]
[333382824,1722085835580,-773.08,0.00010998,2]
[333382825,1722085835590,-500.0,0.00010999,2]
[333382826,1722085835599,-500.0,0.00010999,2]
[333382827,1722085835615,-500.0,0.00010999,2]
[333382828,1722085835624,-500.0,0.00010999,2]
[333382829,1722085835633,-500.0,0.00010999,2]
[333382830,1722085835645,-500.0,0.00010999,2]
[333382831,1722085835654,-500.0,0.00010999,2]
[333382832,1722085835666,-500.0,0.00010999,2]
[333382833,1722085835675,-500.0,0.00010999,2]
[333382834,1722085835685,-500.0,0.00010999,2]
[333382835,1722085835694,-233.89999999,0.00010999,2]
[333382836,1722085835704,-500.0,0.00010999,2]
[333382837,1722085835713,-500.0,0.00010999,2]
[333382838,1722085835722,-500.0,0.00010999,2]
[333382839,1722085835734,-500.0,0.00010999,2]
[333382840,1722085835743,-500.0,0.00010999,2]
[333382841,1722085835752,-500.0,0.00010999,2]
[333382842,1722085835761,-505.24850308,0.00010999,2]
[333382843,1722085835770,-500.0,0.00010999,2]
[333382844,1722085835780,-500.0,0.00010999,2]
[333382845,1722085835789,-500.0,0.00010999,2]
[333382846,1722085835798,-500.0,0.00010999,2]
[333382847,1722085835807,-773.08,0.00010999,2]
[333382848,1722085835816,-773.08,0.00010999,2]
[333382849,1722085835825,-773.08,0.00010999,2]
[333382850,1722085835834,-773.08,0.00010999,2]
[333382851,1722085835843,-773.08,0.00010999,2]
[333382852,1722085835853,-773.08,0.00010999,2]
[333382853,1722085835864,-773.08,0.00010999,2]
[333382854,1722085835873,-773.08,0.00010999,2]
[333382855,1722085835882,-773.08,0.00010999,2]
[333382856,1722085835891,-773.08,0.00010999,2]
[333382857,1722085835901,-773.08,0.00010999,2]
[333382858,1722085835912,-773.08,0.00010999,2]
[333382859,1722085835922,-773.08,0.00010999,2]
[333382860,1722085835932,-773.08,0.00010999,2]
[333382861,1722085835943,-773.16,0.00010999,2]
[333382862,1722085835955,-486.54905377,0.00010999,2]
[333382863,1722085835966,-500.0,0.00010999,2]
[333382864,1722085835975,-500.0,0.00010999,2]
[333382865,1722085835985,-500.0,0.00010999,2]
[333382866,1722085835995,-500.0,0.00010999,2]
[333382867,1722085836004,-500.0,0.00010999,2]
[333382868,1722085836013,-500.0,0.00010999,2]
[333382869,1722085836023,-500.0,0.00010999,2]
[333382870,1722085836032,-500.0,0.00010999,2]
[333382871,1722085836041,-500.0,0.00010999,2]
[333382872,1722085836051,-500.0,0.00010999,2]
[333382873,1722085836060,-500.0,0.00010999,2]
[333382874,1722085836070,-500.0,0.00010999,2]
[333382875,1722085836080,-500.0,0.00010999,2]
[333382876,1722085836090,-500.0,0.00010999,2]
[333382877,1722085836099,-500.0,0.00010999,2]
[333382878,1722085836112,-500.0,0.00010999,2]
[333382879,1722085836121,-500.0,0.00010999,2]
[333382880,1722085836130,-500.0,0.00010999,2]
[333382881,1722085836140,-500.0,0.00010999,2]
[333382882,1722085836152,-500.0,0.00010999,2]
[333382883,1722085836162,-500.0,0.00010999,2]
[333382884,1722085836172,-500.0,0.00010999,2]
[333382885,1722085836181,-500.0,0.00010999,2]
[333382886,1722085836190,-357.12,0.00010999,2]
[333382887,1722085836200,-500.0,0.00010999,2]
[333382888,1722085836210,-500.0,0.00010999,2]
[333382889,1722085836219,-500.0,0.00010999,2]
[333382890,1722085836228,-500.0,0.00010999,2]
[333382891,1722085836238,-500.0,0.00010999,2]
[333382892,1722085836247,-500.0,0.00010999,2]
[333382893,1722085836256,-500.0,0.00010999,2]
[333382894,1722085836266,-500.0,0.00010999,2]
[333382895,1722085836276,-500.23382654,0.00010999,2]
[333382896,1722085836286,-450.74908097,0.00010999,2]
[333382897,1722085836295,-644.74084553,0.00010999,2]
[333382898,1722085836305,-500.0,0.00010999,2]
[333382899,1722085836315,-500.0,0.00010999,2]
[333382900,1722085836325,-500.0,0.00010999,2]
[333382901,1722085836334,-500.0,0.00010999,2]
[333382902,1722085836344,-500.0,0.00010999,2]
[333382903,1722085836353,-500.0,0.00010999,2]
[333382904,1722085836366,-500.0,0.00010999,2]
[333382905,1722085836375,-386.45327412,0.00010999,2]
[333382906,1722085836385,-500.0,0.00010999,2]
[333382907,1722085836394,-500.0,0.00010999,2]
[333382908,1722085836403,-500.0,0.00010999,2]
[333382909,1722085836412,-500.0,0.00010999,2]
[333382910,1722085836422,-500.0,0.00010999,2]
[333382911,1722085836432,-500.0,0.00010999,2]
[333382912,1722085836441,-500.0,0.00010999,2]
[333382913,1722085836450,-500.0,0.00010999,2]
[333382914,1722085836459,-332.50180864,0.00010999,2]
[333382915,1722085836468,-500.0,0.00010999,2]
[333382916,1722085836478,-500.0,0.00010999,2]
[333382917,1722085836487,-500.0,0.00010999,2]
[333382918,1722085836497,-500.0,0.00010999,2]
[333382919,1722085836506,-370.76045648,0.00010999,2]
[333382920,1722085836516,-253.12265012,0.00010999,2]
[333382921,1722085836525,-500.0,0.00010999,2]
[333382922,1722085836534,-500.0,0.00010999,2]
[333382923,1722085836543,-500.0,0.00010999,2]
[333382924,1722085836553,-500.0,0.00010999,2]
[333382925,1722085836561,-500.0,0.00010999,2]
[333382926,1722085836570,-500.000001,0.00010999,2]
[333382927,1722085836580,-500.0,0.00010999,2]
[333382928,1722085836590,-1600.0,0.00011,2]
[333382929,1722085836599,-64742.61460056,0.00011,2]
[333382933,1722085837867,-253.7732008,0.000109,2]
[333383072,1722085839711,-500.0,0.000109,2]
[333383073,1722085839773,-87.75028353,0.000109,2]
[333383074,1722085839783,-191.5819818,0.00010998,2]
[333383075,1722085840056,-308.4180182,0.00010998,2]
[333383076,1722085840066,-14.14350574,0.00010999,2]
[333383077,1722085840078,-620.02455553,0.00010999,2]
[333383078,1722085840088,-2021.11189866,0.00011,2]
[333383202,1722085842807,-289938.50442645,0.00011,2]
[333383203,1722085842817,-327308.49557368,0.00011,2]
[333383204,1722085842836,-252.39957603,0.00011,2]
[333383205,1722085842900,-636.49603942,0.00011,2]
[333383206,1722085842959,-1329805.97583923,0.00011,2]
[333383207,1722085842969,-47186.80515741,0.00011,2]
[333383256,1722085845795,-183.0398369,0.00010994,2]
[333383257,1722085845804,-1258.7331367,0.00011,2]
[333383258,1722085845967,-552.86,0.00011,2]
[333383259,1722085845978,-301.625,0.00011,2]
[333383436,1722087033127,-517.85511205,8.219e-05,2]
[333383437,1722087033139,-211.12488795,8.219e-05,2]
[333383438,1722087033150,-609.74920074,8.708e-05,2]
[333383439,1722087033164,-277.60729545,8.708e-05,2]
[333383440,1722087033174,-546.6512183,8.708e-05,2]
[333383441,1722087033201,-53.3487817,8.708e-05,2]
[333383442,1722087033210,-300.0,8.724e-05,2]
[333383443,1722087033220,-991.43690626,8.725e-05,2]
[333383444,1722087033293,-1420.86797097,8.725e-05,2]
[333383447,1722087033394,-2012.29595931,8.725e-05,2]
[333383448,1722087033406,-2933.40559046,8.725e-05,2]
[333383449,1722087033450,-6633.103573,8.725e-05,2]
[333383450,1722087033460,-2000.0,8.997e-05,2]
[333383451,1722087033469,-6925.81316541,8.998e-05,2]
[333383452,1722087033481,-1753.36683459,8.998e-05,2]
[333383453,1722087033490,-181.44,9.017e-05,2]
[333383454,1722087033499,-181.44,9.019e-05,2]
[333383455,1722087033508,-181.44,9.021e-05,2]
[333383456,1722087033518,-181.44,9.024e-05,2]
[333383457,1722087033527,-181.44,9.026e-05,2]
[333383458,1722087033536,-181.44,9.029e-05,2]
[333383459,1722087033546,-400.0,9.029e-05,2]
[333383460,1722087033555,-181.44,9.031e-05,2]
[333383461,1722087033564,-181.44,9.033e-05,2]
[333383462,1722087033573,-181.44,9.036e-05,2]
[333383463,1722087033582,-181.44,9.038e-05,2]
[333383464,1722087033592,-181.44,9.041e-05,2]
[333383465,1722087033601,-181.44,9.043e-05,2]
[333383466,1722087033610,-181.44,9.045e-05,2]
[333383467,1722087033620,-181.44,9.048e-05,2]
[333383468,1722087033630,-181.44,9.05e-05,2]
[333383469,1722087033639,-181.44,9.052e-05,2]
[333383470,1722087033649,-181.44,9.055e-05,2]
[333383471,1722087033658,-150.0,9.057e-05,2]
[333383472,1722087033668,-181.44,9.057e-05,2]
[333383473,1722087033677,-181.44,9.06e-05,2]
[333383474,1722087033687,-181.44,9.062e-05,2]
[333383475,1722087033697,-1350.45,9.67e-05,2]
[333383476,1722087033706,-499.99,9.67e-05,2]
[333383477,1722087033716,-169.56,9.67e-05,2]
[333383478,1722087033725,-600.0,9.797e-05,2]
[333383479,1722087033735,-255.0,9.963e-05,2]
[333383480,1722087033745,-35551.0,0.0001,2]
[333383481,1722087033755,-1398.65586347,0.0001,2]
[333383482,1722087033764,-1250.0,0.0001,2]
[333383483,1722087033773,-400.0,0.00010158,2]
[333383484,1722087033783,-529.11,0.00010192,2]
[333383485,1722087033792,-530.1,0.00010278,2]
[333383486,1722087033801,-530.1,0.00010278,2]
[333383487,1722087033810,-530.1,0.00010278,2]
[333383488,1722087033820,-411.14,0.00010378,2]
[333383489,1722087033829,-530.1,0.00010378,2]
[333383490,1722087033838,-530.1,0.00010378,2]
[333383491,1722087033847,-530.1,0.00010378,2]
[333383492,1722087033857,-728.98,0.00010424,2]
[333383493,1722087033866,-20237.0,0.0001046,2]
[333383494,1722087033876,-611.2573,0.00010466,2]
[333383495,1722087033886,-349.29,0.00010552,2]
[333383496,1722087033895,-1808.5081,0.00010758,2]
[333383497,1722087033905,-4542.2437,0.00010758,2]
[333383498,1722087033914,-251.3355033,0.0001078,2]
[333383499,1722087033924,-219.761,0.00010787,2]
[333383500,1722087033933,-749.93,0.00010787,2]
[333383501,1722087033943,-14910.441,0.00010787,2]
[333383502,1722087033953,-500.0,0.000108,2]
[333383503,1722087033963,-6516.90755163,0.000108,2]
[333383504,1722087033972,-16209.2861,0.00010858,2]
[333383505,1722087033982,-7313.3623,0.0001088,2]
[333383506,1722087033992,-600.0,0.00010885,2]
[333383507,1722087034001,-3250.2608,0.00010894,2]
[333383508,1722087034011,-10327.00008,0.00010899,2]
[333383509,1722087034020,-267.84720901,0.00010899,2]
[333383510,1722087034030,-297.98608055,0.00010899,2]
[333383511,1722087034039,-171.61014676,0.000109,2]
[333383512,1722087034048,-1385.32690422,0.000109,2]
[333383513,1722087034058,-209.2893539,0.000109,2]
[333383514,1722087034067,-774.58679731,0.000109,2]
[333383515,1722087034077,-221.03,0.00010904,2]
[333383516,1722087034286,-500.0,0.00010911,2]
[333383517,1722087034296,-500.0,0.00010912,2]
[333383518,1722087034306,-500.0,0.00010945,2]
[333383519,1722087034316,-284.3297,0.00010945,2]
[333383520,1722087034325,-294.8074,0.00010945,2]
[333383521,1722087034335,-500.0,0.00010958,2]
[333383522,1722087034344,-500.0,0.00010958,2]
[333383523,1722087034354,-500.0,0.00010958,2]
[333383524,1722087034363,-500.0,0.00010958,2]
[333383525,1722087034374,-515.05478398,0.00010958,2]
[333383526,1722087034384,-500.0,0.00010958,2]
[333383527,1722087034394,-500.0,0.00010958,2]
[333383528,1722087034404,-620.3,0.00010958,2]
[333383529,1722087034413,-500.0,0.00010958,2]
[333383530,1722087034422,-500.0,0.00010958,2]
[333383531,1722087034432,-500.0,0.00010958,2]
[333383532,1722087034441,-500.0,0.00010958,2]
[333383533,1722087034450,-500.0,0.00010958,2]
[333383534,1722087034459,-500.0,0.00010958,2]
[333383535,1722087034468,-649.03156801,0.00010958,2]
[333383536,1722087034477,-500.0,0.00010958,2]
[333383537,1722087034487,-500.0,0.00010958,2]
[333383538,1722087034496,-500.0,0.00010958,2]
[333383539,1722087034506,-500.0,0.00010958,2]
[333383540,1722087034516,-256.15,0.00010958,2]
[333383541,1722087034525,-500.0,0.00010958,2]
[333383542,1722087034535,-500.0,0.00010958,2]
[333383543,1722087034545,-500.0,0.00010958,2]
[333383544,1722087034554,-416.0,0.00010958,2]
[333383545,1722087034564,-500.0,0.00010958,2]
[333383546,1722087034573,-500.0,0.00010958,2]
[333383547,1722087034583,-500.0,0.00010958,2]
[333383548,1722087034592,-500.0,0.00010958,2]
[333383549,1722087034601,-500.0,0.00010958,2]
[333383550,1722087034611,-500.0,0.00010958,2]
[333383551,1722087034622,-500.0,0.00010958,2]
[333383552,1722087034631,-505.83923712,0.00010958,2]
[333383553,1722087034643,-500.0,0.00010958,2]
[333383554,1722087034652,-500.0,0.00010958,2]
[333383555,1722087034662,-500.0,0.00010958,2]
[333383556,1722087034671,-500.0,0.00010958,2]
[333383557,1722087034680,-500.0,0.00010958,2]
[333383558,1722087034690,-500.0,0.00010958,2]
[333383559,1722087034700,-592.79757617,0.00010958,2]
[333383560,1722087034709,-500.0,0.00010958,2]
[333383561,1722087034719,-500.0,0.00010958,2]
[333383562,1722087034728,-341.74412,0.00010958,2]
[333383563,1722087034738,-500.0,0.00010958,2]
[333383564,1722087034748,-500.0,0.00010958,2]
[333383565,1722087034758,-500.0,0.00010958,2]
[333383566,1722087034767,-500.0,0.00010958,2]
[333383567,1722087034777,-500.0,0.00010958,2]
[333383568,1722087034787,-500.0,0.00010958,2]
[333383569,1722087034797,-250.0,0.00010959,2]
[333383570,1722087034806,-255.0,0.00010959,2]
[333383571,1722087034815,-9795.57000778,0.00010994,2]
[333383572,1722087034825,-500.0,0.00010998,2]
[333383573,1722087034834,-500.0,0.00010998,2]
[333383574,1722087034844,-500.0,0.00010998,2]
[333383575,1722087034853,-500.0,0.00010998,2]
[333383576,1722087034863,-500.0,0.00010998,2]
[333383577,1722087034874,-500.0,0.00010998,2]
[333383578,1722087034884,-500.0,0.00010998,2]
[333383579,1722087034894,-500.0,0.00010998,2]
[333383580,1722087034903,-500.0,0.00010998,2]
[333383581,1722087034913,-500.0,0.00010998,2]
[333383582,1722087034923,-356.77271642,0.00010998,2]
[333383583,1722087034940,-143.22728358,0.00010998,2]
[333383584,1722087034950,-500.0,0.00010998,2]
[333383585,1722087034960,-500.0,0.00010998,2]
[333383586,1722087034969,-500.0,0.00010998,2]
[333383587,1722087034980,-500.0,0.00010998,2]
[333383588,1722087034989,-500.0,0.00010998,2]
[333383589,1722087034998,-500.0,0.00010998,2]
[333383590,1722087035008,-500.0,0.00010998,2]
[333383591,1722087035018,-2026.95,0.00010998,2]
[333383592,1722087035028,-500.0,0.00010998,2]
[333383593,1722087035037,-500.0,0.00010998,2]
[333383594,1722087035047,-279.78330525,0.00010998,2]
[333383595,1722087035057,-500.0,0.00010998,2]
[333383596,1722087035066,-500.0,0.00010998,2]
[333383597,1722087035076,-500.0,0.00010998,2]
[333383598,1722087035085,-500.0,0.00010998,2]
[333383599,1722087035095,-500.0,0.00010998,2]
[333383600,1722087035104,-500.0,0.00010998,2]
[333383601,1722087035113,-500.0,0.00010998,2]
[333383602,1722087035124,-500.0,0.00010998,2]
[333383603,1722087035134,-500.0,0.00010998,2]
[333383604,1722087035143,-500.0,0.00010998,2]
[333383605,1722087035155,-500.0,0.00010998,2]
[333383606,1722087035165,-500.0,0.00010998,2]
[333383607,1722087035174,-500.0,0.00010998,2]
[333383608,1722087035183,-503.34219601,0.00010998,2]
[333383609,1722087035194,-500.0,0.00010998,2]
[333383610,1722087035204,-500.0,0.00010998,2]
[333383611,1722087035213,-500.0,0.00010998,2]
[333383612,1722087035223,-500.0,0.00010998,2]
[333383613,1722087035232,-500.0,0.00010998,2]
[333383614,1722087035242,-500.0,0.00010998,2]
[333383615,1722087035252,-541.83,0.00010998,2]
[333383616,1722087035261,-500.0,0.00010998,2]
[333383617,1722087035270,-500.0,0.00010998,2]
[333383618,1722087035279,-500.0,0.00010998,2]
[333383619,1722087035288,-500.0,0.00010998,2]
[333383620,1722087035297,-500.0,0.00010998,2]
[333383621,1722087035306,-569.91,0.00010998,2]
[333383622,1722087035315,-500.0,0.00010998,2]
[333383623,1722087035324,-500.0,0.00010998,2]
[333383624,1722087035333,-365.29349153,0.00010998,2]
[333383625,1722087035342,-500.0,0.00010998,2]
[333383626,1722087035351,-500.0,0.00010998,2]
[333383627,1722087035360,-500.0,0.00010998,2]
[333383628,1722087035370,-559.06,0.00010998,2]
[333383629,1722087035379,-500.0,0.00010998,2]
[333383630,1722087035389,-500.0,0.00010998,2]
[333383631,1722087035398,-500.0,0.00010998,2]
[333383632,1722087035408,-426.45341624,0.00010998,2]
[333383633,1722087035417,-500.0,0.00010998,2]
[333383634,1722087035426,-500.0,0.00010998,2]
[333383635,1722087035435,-500.0,0.00010998,2]
[333383636,1722087035444,-500.0,0.00010998,2]
[333383637,1722087035453,-500.0,0.00010998,2]